[Event "Titled Tuesday Blitz June 6 Late 2023"]
[White "Przybylski, Wojciech"]
[Black "Riff, Jean-Noel"]
[WhiteFideId "1117599"]
[BlackFideId "611190"]
[WhiteElo "2228"]
[BlackElo "2479"]
[Result "1-0"]
[Round "9"]
[TimeControl "180+2"]
[Date "2023.06.07"]
[WhiteClock "0:01:40"]
[BlackClock "0:01:02"]
[Board "51"]

1. e4 {[%clk 0:02:54]}  e5 {[%clk 0:02:57]} 2. Nf3 {[%clk 0:02:54]}  Nc6 {[%clk 0:02:58]} 3. Bb5 {[%clk 0:02:53]}  a6 {[%clk 0:02:58]} 4. Ba4 {[%clk 0:02:54]}  Nf6 {[%clk 0:02:59]} 5. O-O {[%clk 0:02:54]}  Be7 {[%clk 0:02:59]} 6. Re1 {[%clk 0:02:54]}  b5 {[%clk 0:03:00]} 7. Bb3 {[%clk 0:02:54]}  d6 {[%clk 0:03:00]} 8. c3 {[%clk 0:02:54]}  O-O {[%clk 0:03:01]} 9. d4 {[%clk 0:02:52]}  Bg4 {[%clk 0:03:00]} 10. a4 {[%clk 0:02:53]}  Nd7 {[%clk 0:02:33]} 11. a5 {[%clk 0:02:50]}  exd4 {[%clk 0:02:29]} 12. cxd4 {[%clk 0:02:49]}  Bf6 {[%clk 0:02:30]} 13. Be3 {[%clk 0:02:40]}  Bxf3 {[%clk 0:02:29]} 14. gxf3 {[%clk 0:02:39]}  Ne7 {[%clk 0:02:29]} 15. f4 {[%clk 0:02:37]}  Ng6 {[%clk 0:02:27]} 16. e5 {[%clk 0:02:36]}  Bh4 {[%clk 0:02:27]} 17. Qh5 {[%clk 0:02:31]}  dxe5 {[%clk 0:02:18]} 18. dxe5 {[%clk 0:02:30]}  Kh8 {[%clk 0:02:18]} 19. Nc3 {[%clk 0:02:22]}  c6 {[%clk 0:01:22]} 20. Rad1 {[%clk 0:02:18]}  Qe7 {[%clk 0:01:22]} 21. Ne4 {[%clk 0:02:08]}  Rad8 {[%clk 0:01:18]} 22. Nd6 {[%clk 0:02:08]}  Ndxe5 {[%clk 0:01:03]} 23. fxe5 {[%clk 0:02:05]}  Nxe5 {[%clk 0:01:04]} 24. Nf5 {[%clk 0:01:53]}  Qf6 {[%clk 0:01:03]} 25. Nxh4 {[%clk 0:01:50]}  Qxh4 {[%clk 0:01:03]} 26. Qxe5 {[%clk 0:01:41]}  Rde8 {[%clk 0:01:02]} 27. Qg3 {[%clk 0:01:40]} 1-0


[Site "https://www.chess.com"]

[Event "Titled Tuesday Blitz June 6 Late 2023"]
[White "Moral Garcia, Serafin"]
[Black "Boder, Jan"]
[WhiteFideId "2201925"]
[BlackFideId "16243226"]
[WhiteElo "2274"]
[BlackElo "2241"]
[Result "1-0"]
[Round "9"]
[TimeControl "180+2"]
[Date "2023.06.07"]
[WhiteClock "0:00:36"]
[BlackClock "0:00:35"]
[Board "53"]

1. c4 {[%clk 0:03:00]}  e5 {[%clk 0:02:56]} 2. Nc3 {[%clk 0:03:00]}  Nf6 {[%clk 0:02:56]} 3. Nf3 {[%clk 0:02:59]}  e4 {[%clk 0:02:55]} 4. Ng5 {[%clk 0:02:58]}  b5 {[%clk 0:02:56]} 5. d3 {[%clk 0:02:34]}  exd3 {[%clk 0:02:42]} 6. cxb5 {[%clk 0:02:33]}  a6 {[%clk 0:02:37]} 7. Qxd3 {[%clk 0:02:29]}  axb5 {[%clk 0:02:34]} 8. Qxb5 {[%clk 0:02:20]}  Ba6 {[%clk 0:02:32]} 9. Qb3 {[%clk 0:02:16]}  d5 {[%clk 0:02:30]} 10. Bf4 {[%clk 0:01:56]}  h6 {[%clk 0:02:29]} 11. Nf3 {[%clk 0:01:54]}  Bd6 {[%clk 0:02:21]} 12. Bxd6 {[%clk 0:01:49]}  Qxd6 {[%clk 0:02:22]} 13. Rd1 {[%clk 0:01:49]}  Bc4 {[%clk 0:02:19]} 14. Qb7 {[%clk 0:01:45]}  Qa6 {[%clk 0:02:09]} 15. Qxa6 {[%clk 0:01:44]}  Rxa6 {[%clk 0:02:10]} 16. b3 {[%clk 0:01:35]}  d4 {[%clk 0:02:10]} 17. Nxd4 {[%clk 0:01:30]}  Be6 {[%clk 0:02:09]} 18. Nxe6 {[%clk 0:01:30]}  Rxe6 {[%clk 0:02:09]} 19. e3 {[%clk 0:01:26]}  O-O {[%clk 0:02:09]} 20. Bc4 {[%clk 0:01:25]}  Re5 {[%clk 0:02:05]} 21. Ke2 {[%clk 0:01:24]}  Nbd7 {[%clk 0:02:03]} 22. Nd5 {[%clk 0:01:19]}  c6 {[%clk 0:01:58]} 23. Nxf6+ {[%clk 0:01:18]}  Nxf6 {[%clk 0:01:59]} 24. Rd6 {[%clk 0:01:17]}  c5 {[%clk 0:01:44]} 25. Rhd1 {[%clk 0:01:15]}  Ne4 {[%clk 0:01:43]} 26. R6d3 {[%clk 0:01:08]}  Rfe8 {[%clk 0:01:19]} 27. f3 {[%clk 0:01:05]}  Nf6 {[%clk 0:01:17]} 28. Kf2 {[%clk 0:01:04]}  Kh7 {[%clk 0:01:09]} 29. Bxf7 {[%clk 0:01:02]}  R8e7 {[%clk 0:01:06]} 30. Bc4 {[%clk 0:01:02]}  g5 {[%clk 0:01:05]} 31. a4 {[%clk 0:00:59]}  g4 {[%clk 0:01:04]} 32. f4 {[%clk 0:00:46]}  Rh5 {[%clk 0:00:52]} 33. Kg1 {[%clk 0:00:44]}  g3 {[%clk 0:00:44]} 34. h3 {[%clk 0:00:43]}  Kg7 {[%clk 0:00:37]} 35. a5 {[%clk 0:00:42]}  Ne4 {[%clk 0:00:37]} 36. Rd7 {[%clk 0:00:37]}  Kf6 {[%clk 0:00:34]} 37. Rxe7 {[%clk 0:00:38]}  Kxe7 {[%clk 0:00:35]} 38. a6 {[%clk 0:00:38]}  Nd6 {[%clk 0:00:35]} 39. a7 {[%clk 0:00:36]} 1-0


[Site "https://www.chess.com"]

[Event "Titled Tuesday Blitz June 6 Late 2023"]
[White "Veiga, Jose Francisco R P Neves"]
[Black "Filgueira, Hernan"]
[WhiteFideId "1930087"]
[BlackFideId "101770"]
[WhiteElo "2319"]
[BlackElo "2363"]
[Result "0-1"]
[Round "9"]
[TimeControl "180+2"]
[Date "2023.06.07"]
[WhiteClock "0:00:13"]
[BlackClock "0:00:13"]
[Board "55"]

1. e4 {[%clk 0:02:51]}  d6 {[%clk 0:02:59]} 2. d4 {[%clk 0:02:51]}  Nf6 {[%clk 0:03:00]} 3. Nc3 {[%clk 0:02:51]}  e5 {[%clk 0:03:01]} 4. Nf3 {[%clk 0:02:50]}  Nbd7 {[%clk 0:03:00]} 5. g4 {[%clk 0:02:51]}  g6 {[%clk 0:02:59]} 6. g5 {[%clk 0:02:46]}  Nh5 {[%clk 0:02:59]} 7. h4 {[%clk 0:02:45]}  Bg7 {[%clk 0:02:58]} 8. Bc4 {[%clk 0:02:43]}  c6 {[%clk 0:02:58]} 9. Be3 {[%clk 0:02:38]}  b5 {[%clk 0:02:57]} 10. Bb3 {[%clk 0:02:38]}  a6 {[%clk 0:02:54]} 11. dxe5 {[%clk 0:02:38]}  dxe5 {[%clk 0:02:54]} 12. Qd6 {[%clk 0:02:32]}  Bb7 {[%clk 0:02:45]} 13. O-O-O {[%clk 0:02:29]}  Qe7 {[%clk 0:02:28]} 14. Qc7 {[%clk 0:02:16]}  Nf8 {[%clk 0:02:26]} 15. Qb6 {[%clk 0:01:36]}  Rc8 {[%clk 0:02:12]} 16. Bc5 {[%clk 0:01:36]}  Qc7 {[%clk 0:02:12]} 17. Qxc7 {[%clk 0:01:20]}  Rxc7 {[%clk 0:02:12]} 18. Bd6 {[%clk 0:01:21]}  Re7 {[%clk 0:02:07]} 19. Bxe7 {[%clk 0:01:18]}  Kxe7 {[%clk 0:02:07]} 20. Rd2 {[%clk 0:01:17]}  Bc8 {[%clk 0:01:45]} 21. Nd1 {[%clk 0:00:43]}  Ne6 {[%clk 0:01:40]} 22. Ne3 {[%clk 0:00:41]}  Nc5 {[%clk 0:01:39]} 23. Re2 {[%clk 0:00:26]}  Nf4 {[%clk 0:01:34]} 24. Ree1 {[%clk 0:00:23]}  a5 {[%clk 0:01:33]} 25. a3 {[%clk 0:00:19]}  Nxb3+ {[%clk 0:01:32]} 26. cxb3 {[%clk 0:00:19]}  Nd3+ {[%clk 0:01:32]} 27. Kd2 {[%clk 0:00:19]}  Nxe1 {[%clk 0:01:32]} 28. Rxe1 {[%clk 0:00:20]}  Be6 {[%clk 0:01:32]} 29. Kc2 {[%clk 0:00:20]}  h6 {[%clk 0:01:30]} 30. Rd1 {[%clk 0:00:12]}  h5 {[%clk 0:01:26]} 31. Rd3 {[%clk 0:00:10]}  Rc8 {[%clk 0:01:10]} 32. Ne1 {[%clk 0:00:09]}  f6 {[%clk 0:01:05]} 33. Nf3 {[%clk 0:00:07]}  Rd8 {[%clk 0:00:54]} 34. Rxd8 {[%clk 0:00:06]}  Kxd8 {[%clk 0:00:54]} 35. Nf1 {[%clk 0:00:05]}  f5 {[%clk 0:00:49]} 36. N1d2 {[%clk 0:00:05]}  Kc7 {[%clk 0:00:47]} 37. Ne1 {[%clk 0:00:05]}  Bf8 {[%clk 0:00:41]} 38. f3 {[%clk 0:00:05]}  Bc5 {[%clk 0:00:39]} 39. Nd3 {[%clk 0:00:05]}  Bd4 {[%clk 0:00:39]} 40. Nf1 {[%clk 0:00:05]}  f4 {[%clk 0:00:38]} 41. Nd2 {[%clk 0:00:04]}  Kd6 {[%clk 0:00:36]} 42. Nb1 {[%clk 0:00:05]}  Bh3 {[%clk 0:00:32]} 43. Nc3 {[%clk 0:00:05]}  Bg2 {[%clk 0:00:32]} 44. Ne1 {[%clk 0:00:04]}  Bf1 {[%clk 0:00:31]} 45. Nd1 {[%clk 0:00:02]}  Be2 {[%clk 0:00:30]} 46. Kd2 {[%clk 0:00:02]}  Bf1 {[%clk 0:00:29]} 47. Nc3 {[%clk 0:00:02]}  Be3+ {[%clk 0:00:24]} 48. Kc2 {[%clk 0:00:01]}  Bf2 {[%clk 0:00:21]} 49. Kd2 {[%clk 0:00:02]}  Bxh4 {[%clk 0:00:21]} 50. Nd1 {[%clk 0:00:02]}  Bxg5 {[%clk 0:00:20]} 51. Nf2 {[%clk 0:00:03]}  Bh4 {[%clk 0:00:19]} 52. Ned3 {[%clk 0:00:03]}  Bxf2 {[%clk 0:00:18]} 53. Nxf2 {[%clk 0:00:04]}  h4 {[%clk 0:00:18]} 54. Ng4 {[%clk 0:00:04]}  h3 {[%clk 0:00:16]} 55. Nh2 {[%clk 0:00:05]}  Bg2 {[%clk 0:00:16]} 56. Kc3 {[%clk 0:00:06]}  Kc5 {[%clk 0:00:15]} 57. b4+ {[%clk 0:00:06]}  axb4+ {[%clk 0:00:15]} 58. axb4+ {[%clk 0:00:07]}  Kb6 {[%clk 0:00:16]} 59. Kd3 {[%clk 0:00:07]}  g5 {[%clk 0:00:16]} 60. Kc3 {[%clk 0:00:08]}  c5 {[%clk 0:00:16]} 61. bxc5+ {[%clk 0:00:08]}  Kxc5 {[%clk 0:00:15]} 62. b4+ {[%clk 0:00:09]}  Kd6 {[%clk 0:00:15]} 63. Kd3 {[%clk 0:00:10]}  Bxf3 {[%clk 0:00:14]} 64. Nxf3 {[%clk 0:00:10]}  g4 {[%clk 0:00:14]} 65. Nh2 {[%clk 0:00:11]}  g3 {[%clk 0:00:14]} 66. Nf3 {[%clk 0:00:08]}  h2 {[%clk 0:00:14]} 67. Ke2 {[%clk 0:00:09]}  h1=Q {[%clk 0:00:14]} 68. Ne1 {[%clk 0:00:10]}  g2 {[%clk 0:00:14]} 69. Kd2 {[%clk 0:00:11]}  g1=Q {[%clk 0:00:14]} 70. Nd3 {[%clk 0:00:11]}  Qe3+ {[%clk 0:00:14]} 71. Kc3 {[%clk 0:00:12]}  Qhc1+ {[%clk 0:00:13]} 72. Kb3 {[%clk 0:00:12]}  Qc4+ {[%clk 0:00:13]} 73. Kb2 {[%clk 0:00:12]}  Qd2+ {[%clk 0:00:13]} 74. Ka1 {[%clk 0:00:13]}  Qca2# {[%clk 0:00:13]} 0-1


[Site "https://www.chess.com"]

[Event "Titled Tuesday Blitz June 6 Late 2023"]
[White "Camilla_Lee"]
[Black "laziestwin"]
[WhiteElo "2501"]
[BlackElo "2649"]
[Result "0-1"]
[Round "9"]
[TimeControl "180+2"]
[Date "2023.06.07"]
[WhiteClock "0:02:08"]
[BlackClock "0:01:53"]
[Board "56"]

1. e4 {[%clk 0:03:00]}  c6 {[%clk 0:02:57]} 2. d4 {[%clk 0:03:00]}  d5 {[%clk 0:02:58]} 3. Nc3 {[%clk 0:03:01]}  dxe4 {[%clk 0:02:58]} 4. Nxe4 {[%clk 0:03:01]}  Nf6 {[%clk 0:02:59]} 5. Nxf6+ {[%clk 0:03:01]}  exf6 {[%clk 0:02:59]} 6. c3 {[%clk 0:03:01]}  Bd6 {[%clk 0:03:00]} 7. Bd3 {[%clk 0:03:01]}  O-O {[%clk 0:03:00]} 8. Ne2 {[%clk 0:03:02]}  Re8 {[%clk 0:03:01]} 9. O-O {[%clk 0:03:02]}  Nd7 {[%clk 0:02:59]} 10. Ng3 {[%clk 0:02:54]}  Nf8 {[%clk 0:02:56]} 11. Bd2 {[%clk 0:02:51]}  Be6 {[%clk 0:02:52]} 12. Nf5 {[%clk 0:02:46]}  Bc7 {[%clk 0:02:50]} 13. Ne3 {[%clk 0:02:46]}  Qd7 {[%clk 0:02:43]} 14. Re1 {[%clk 0:02:44]}  f5 {[%clk 0:02:42]} 15. Nf1 {[%clk 0:02:40]}  f4 {[%clk 0:02:33]} 16. f3 {[%clk 0:02:40]}  Ng6 {[%clk 0:02:26]} 17. Qc2 {[%clk 0:02:38]}  Rad8 {[%clk 0:02:22]} 18. Re2 {[%clk 0:02:35]}  c5 {[%clk 0:02:18]} 19. Bxg6 {[%clk 0:02:35]}  hxg6 {[%clk 0:02:18]} 20. dxc5 {[%clk 0:02:36]}  Bf5 {[%clk 0:02:13]} 21. Qd1 {[%clk 0:02:32]}  Rxe2 {[%clk 0:02:11]} 22. Qxe2 {[%clk 0:02:33]}  Bd3 {[%clk 0:02:11]} 23. Qf2 {[%clk 0:02:27]}  Bxf1 {[%clk 0:02:11]} 24. Bxf4 {[%clk 0:02:26]}  Bxf4 {[%clk 0:02:06]} 25. Qxf1 {[%clk 0:02:26]}  Be3+ {[%clk 0:02:06]} 26. Kh1 {[%clk 0:02:27]}  Bxc5 {[%clk 0:02:07]} 27. Re1 {[%clk 0:02:26]}  a6 {[%clk 0:02:03]} 28. Qc4 {[%clk 0:02:25]}  Bf8 {[%clk 0:02:02]} 29. Qe4 {[%clk 0:02:24]}  Qd5 {[%clk 0:02:01]} 30. Qe2 {[%clk 0:02:24]}  Qxa2 {[%clk 0:02:00]} 31. h3 {[%clk 0:02:24]}  Qd5 {[%clk 0:01:59]} 32. c4 {[%clk 0:02:20]}  Qd2 {[%clk 0:01:59]} 33. Qe4 {[%clk 0:02:19]}  Qxb2 {[%clk 0:01:58]} 34. f4 {[%clk 0:02:20]}  Qd4 {[%clk 0:01:54]} 35. Qxb7 {[%clk 0:02:19]}  Qxc4 {[%clk 0:01:55]} 36. Qf3 {[%clk 0:02:17]}  Qd3 {[%clk 0:01:54]} 37. Qxd3 {[%clk 0:02:12]}  Rxd3 {[%clk 0:01:54]} 38. Ra1 {[%clk 0:02:12]}  Rd6 {[%clk 0:01:54]} 39. Kg1 {[%clk 0:02:13]}  Rf6 {[%clk 0:01:53]} 40. g3 {[%clk 0:02:11]}  Bb4 {[%clk 0:01:54]} 41. Kg2 {[%clk 0:02:12]}  a5 {[%clk 0:01:54]} 42. Kf3 {[%clk 0:02:12]}  Ra6 {[%clk 0:01:54]} 43. Ra4 {[%clk 0:02:12]}  Kf8 {[%clk 0:01:54]} 44. Ke4 {[%clk 0:02:12]}  Ke7 {[%clk 0:01:55]} 45. Kd5 {[%clk 0:02:13]}  Kd7 {[%clk 0:01:55]} 46. g4 {[%clk 0:02:13]}  Rd6+ {[%clk 0:01:55]} 47. Kc4 {[%clk 0:02:13]}  Kc6 {[%clk 0:01:55]} 48. Ra1 {[%clk 0:02:12]}  Re6 {[%clk 0:01:55]} 49. Kb3 {[%clk 0:02:10]}  Kb5 {[%clk 0:01:55]} 50. Rd1 {[%clk 0:02:09]}  Re3+ {[%clk 0:01:55]} 51. Ka2 {[%clk 0:02:10]}  a4 {[%clk 0:01:55]} 52. Rd8 {[%clk 0:02:09]}  Re2+ {[%clk 0:01:54]} 53. Kb1 {[%clk 0:02:09]}  a3 {[%clk 0:01:53]} 54. Ra8 {[%clk 0:02:08]}  Kc4 {[%clk 0:01:53]} 0-1


[Site "https://www.chess.com"]

[Event "Titled Tuesday Blitz June 6 Late 2023"]
[White "Krishnakumar, Sriram"]
[Black "Annaberdiyev, Meylis"]
[WhiteFideId "30915856"]
[BlackFideId "14000563"]
[WhiteElo "2499"]
[BlackElo "2416"]
[Result "0-1"]
[Round "9"]
[TimeControl "180+2"]
[Date "2023.06.07"]
[WhiteClock "0:00:06"]
[BlackClock "0:00:57"]
[Board "57"]

1. e4 {[%clk 0:03:00]}  c5 {[%clk 0:02:59]} 2. Nf3 {[%clk 0:03:00]}  Nc6 {[%clk 0:02:59]} 3. Bb5 {[%clk 0:02:58]}  d6 {[%clk 0:02:58]} 4. O-O {[%clk 0:02:57]}  Bd7 {[%clk 0:02:58]} 5. Re1 {[%clk 0:02:57]}  Nf6 {[%clk 0:02:57]} 6. c3 {[%clk 0:02:56]}  a6 {[%clk 0:02:57]} 7. Bf1 {[%clk 0:02:56]}  Bg4 {[%clk 0:02:57]} 8. d4 {[%clk 0:02:55]}  Bxf3 {[%clk 0:02:45]} 9. gxf3 {[%clk 0:02:54]}  cxd4 {[%clk 0:02:45]} 10. cxd4 {[%clk 0:02:55]}  e5 {[%clk 0:02:45]} 11. d5 {[%clk 0:02:52]}  Nd4 {[%clk 0:02:43]} 12. Be3 {[%clk 0:02:43]}  Be7 {[%clk 0:02:38]} 13. Nd2 {[%clk 0:02:36]}  O-O {[%clk 0:02:35]} 14. Nb3 {[%clk 0:02:34]}  Nxb3 {[%clk 0:02:31]} 15. Qxb3 {[%clk 0:02:35]}  Nh5 {[%clk 0:02:10]} 16. Qxb7 {[%clk 0:02:18]}  Bg5 {[%clk 0:02:10]} 17. Qb3 {[%clk 0:01:40]}  Bf4 {[%clk 0:02:09]} 18. h3 {[%clk 0:01:34]}  Rb8 {[%clk 0:02:04]} 19. Qc2 {[%clk 0:01:31]}  Qg5+ {[%clk 0:02:02]} 20. Bg2 {[%clk 0:01:30]}  f5 {[%clk 0:01:51]} 21. Qe2 {[%clk 0:01:16]}  Bxe3 {[%clk 0:01:47]} 22. fxe3 {[%clk 0:01:15]}  f4 {[%clk 0:01:48]} 23. h4 {[%clk 0:00:44]}  Qxh4 {[%clk 0:01:45]} 24. Qf2 {[%clk 0:00:42]}  Qg5 {[%clk 0:01:36]} 25. exf4 {[%clk 0:00:36]}  Nxf4 {[%clk 0:01:36]} 26. Kf1 {[%clk 0:00:31]}  Rf6 {[%clk 0:01:22]} 27. Rac1 {[%clk 0:00:17]}  Nd3 {[%clk 0:01:11]} 28. Qc2 {[%clk 0:00:16]}  Rxb2 {[%clk 0:00:58]} 29. Qc8+ {[%clk 0:00:13]}  Rf8 {[%clk 0:00:58]} 30. Qe6+ {[%clk 0:00:12]}  Kh8 {[%clk 0:00:58]} 31. Re2 {[%clk 0:00:06]}  Qxc1+ {[%clk 0:00:57]} 0-1


[Site "https://www.chess.com"]

[Event "Titled Tuesday Blitz June 6 Late 2023"]
[White "Gubajdullin, Alexei"]
[Black "Ismayil, Malak"]
[WhiteFideId "4141202"]
[BlackFideId "13412604"]
[WhiteElo "2279"]
[BlackElo "1868"]
[Result "1-0"]
[Round "9"]
[TimeControl "180+2"]
[Date "2023.06.07"]
[WhiteClock "0:01:09"]
[BlackClock "0:00:23"]
[Board "59"]

1. d4 {[%clk 0:03:00]}  Nf6 {[%clk 0:02:58]} 2. Nf3 {[%clk 0:03:00]}  e6 {[%clk 0:02:57]} 3. Bf4 {[%clk 0:03:00]}  d5 {[%clk 0:02:52]} 4. e3 {[%clk 0:03:00]}  Be7 {[%clk 0:02:52]} 5. Nbd2 {[%clk 0:02:59]}  O-O {[%clk 0:02:52]} 6. Bd3 {[%clk 0:02:59]}  c5 {[%clk 0:02:51]} 7. c3 {[%clk 0:03:00]}  Nc6 {[%clk 0:02:51]} 8. Ne5 {[%clk 0:03:00]}  Nxe5 {[%clk 0:02:51]} 9. dxe5 {[%clk 0:03:00]}  Nd7 {[%clk 0:02:51]} 10. h4 {[%clk 0:02:59]}  Qc7 {[%clk 0:02:46]} 11. Bxh7+ {[%clk 0:02:56]}  Kxh7 {[%clk 0:02:45]} 12. Qh5+ {[%clk 0:02:56]}  Kg8 {[%clk 0:02:45]} 13. Nf3 {[%clk 0:02:57]}  Re8 {[%clk 0:02:22]} 14. Ng5 {[%clk 0:02:44]}  Bxg5 {[%clk 0:02:21]} 15. hxg5 {[%clk 0:02:42]}  Kf8 {[%clk 0:02:21]} 16. g6 {[%clk 0:02:29]}  fxg6 {[%clk 0:01:55]} 17. Qxg6 {[%clk 0:02:24]}  Kg8 {[%clk 0:01:47]} 18. Qxe8+ {[%clk 0:02:21]}  Nf8 {[%clk 0:01:46]} 19. Rh8+ {[%clk 0:02:09]}  Kxh8 {[%clk 0:01:46]} 20. Qxf8+ {[%clk 0:02:10]}  Kh7 {[%clk 0:01:46]} 21. O-O-O {[%clk 0:02:10]}  Kg6 {[%clk 0:01:41]} 22. Rh1 {[%clk 0:02:06]}  Qf7 {[%clk 0:01:39]} 23. Qd8 {[%clk 0:01:54]}  Qf5 {[%clk 0:01:32]} 24. g4 {[%clk 0:01:54]}  Qxg4 {[%clk 0:01:31]} 25. f3 {[%clk 0:01:14]}  Qxf3 {[%clk 0:01:10]} 26. Rg1+ {[%clk 0:01:13]}  Kf7 {[%clk 0:00:28]} 27. Qg5 {[%clk 0:01:11]}  Ke8 {[%clk 0:00:23]} 28. Qxg7 {[%clk 0:01:10]}  Kd8 {[%clk 0:00:23]} 29. Bg5+ {[%clk 0:01:09]} 1-0


[Site "https://www.chess.com"]

[Event "Titled Tuesday Blitz June 6 Late 2023"]
[White "Garcia Cuenca, Victor"]
[Black "Ozates, Tuna"]
[WhiteFideId "2250829"]
[BlackFideId "6354521"]
[WhiteElo "2329"]
[BlackElo "2151"]
[Result "0-1"]
[Round "9"]
[TimeControl "180+2"]
[Date "2023.06.07"]
[WhiteClock "0:00:02"]
[BlackClock "0:00:12"]
[Board "63"]

1. b3 {[%clk 0:03:00]}  c5 {[%clk 0:02:59]} 2. Bb2 {[%clk 0:03:01]}  Nc6 {[%clk 0:02:59]} 3. e3 {[%clk 0:03:01]}  d5 {[%clk 0:02:57]} 4. Nf3 {[%clk 0:03:02]}  Bg4 {[%clk 0:02:55]} 5. Be2 {[%clk 0:03:02]}  e6 {[%clk 0:02:54]} 6. O-O {[%clk 0:03:02]}  Nf6 {[%clk 0:02:53]} 7. d4 {[%clk 0:03:02]}  cxd4 {[%clk 0:02:53]} 8. Nxd4 {[%clk 0:02:57]}  Bxe2 {[%clk 0:02:52]} 9. Qxe2 {[%clk 0:02:58]}  Nxd4 {[%clk 0:02:52]} 10. Bxd4 {[%clk 0:02:57]}  a6 {[%clk 0:02:51]} 11. c4 {[%clk 0:02:51]}  Be7 {[%clk 0:02:51]} 12. cxd5 {[%clk 0:02:50]}  Qxd5 {[%clk 0:02:48]} 13. Nc3 {[%clk 0:02:46]}  Qa5 {[%clk 0:02:45]} 14. Na4 {[%clk 0:02:33]}  O-O {[%clk 0:02:42]} 15. Rac1 {[%clk 0:02:28]}  Rac8 {[%clk 0:02:38]} 16. Qf3 {[%clk 0:02:20]}  Qd5 {[%clk 0:02:30]} 17. Qg3 {[%clk 0:02:13]}  Rxc1 {[%clk 0:02:23]} 18. Rxc1 {[%clk 0:02:10]}  h6 {[%clk 0:02:14]} 19. Nb6 {[%clk 0:02:05]}  Qf5 {[%clk 0:01:45]} 20. h3 {[%clk 0:01:50]}  Rd8 {[%clk 0:01:36]} 21. Qf3 {[%clk 0:01:34]}  Qxf3 {[%clk 0:01:33]} 22. gxf3 {[%clk 0:01:34]}  Nd5 {[%clk 0:01:23]} 23. Nxd5 {[%clk 0:01:29]}  Rxd5 {[%clk 0:01:23]} 24. Rc7 {[%clk 0:01:29]}  e5 {[%clk 0:01:15]} 25. Bc3 {[%clk 0:01:20]}  Bh4 {[%clk 0:01:05]} 26. Rxb7 {[%clk 0:01:14]}  Rc5 {[%clk 0:01:05]} 27. Be1 {[%clk 0:00:59]}  Rc2 {[%clk 0:00:57]} 28. a4 {[%clk 0:00:55]}  f5 {[%clk 0:00:40]} 29. b4 {[%clk 0:00:50]}  f4 {[%clk 0:00:40]} 30. exf4 {[%clk 0:00:48]}  exf4 {[%clk 0:00:40]} 31. b5 {[%clk 0:00:44]}  axb5 {[%clk 0:00:40]} 32. Rxb5 {[%clk 0:00:34]}  Rc1 {[%clk 0:00:36]} 33. Kf1 {[%clk 0:00:33]}  Bf6 {[%clk 0:00:36]} 34. Ke2 {[%clk 0:00:28]}  Rc2+ {[%clk 0:00:30]} 35. Kd3 {[%clk 0:00:28]}  Ra2 {[%clk 0:00:29]} 36. a5 {[%clk 0:00:28]}  Kf7 {[%clk 0:00:28]} 37. Rb7+ {[%clk 0:00:26]}  Kg6 {[%clk 0:00:28]} 38. Rb6 {[%clk 0:00:26]}  Kh5 {[%clk 0:00:27]} 39. a6 {[%clk 0:00:25]}  Kh4 {[%clk 0:00:27]} 40. Kc4 {[%clk 0:00:05]}  Kxh3 {[%clk 0:00:26]} 41. Kb5 {[%clk 0:00:05]}  Rb2+ {[%clk 0:00:13]} 42. Kc6 {[%clk 0:00:04]}  Ra2 {[%clk 0:00:13]} 43. Kb7 {[%clk 0:00:02]}  Bd4 {[%clk 0:00:12]} 0-1


[Site "https://www.chess.com"]

[Event "Titled Tuesday Blitz June 6 Late 2023"]
[White "Roberson, Peter T"]
[Black "Kaplan, Avi Harrison"]
[WhiteFideId "412384"]
[BlackFideId "30934559"]
[WhiteElo "2346"]
[BlackElo "1983"]
[Result "1/2-1/2"]
[Round "9"]
[TimeControl "180+2"]
[Date "2023.06.07"]
[WhiteClock "0:00:38"]
[BlackClock "0:02:06"]
[Board "64"]

1. e4 {[%clk 0:03:00]}  b6 {[%clk 0:02:59]} 2. d4 {[%clk 0:03:00]}  Bb7 {[%clk 0:02:59]} 3. Bd3 {[%clk 0:03:01]}  f5 {[%clk 0:02:59]} 4. exf5 {[%clk 0:03:00]}  Bxg2 {[%clk 0:02:58]} 5. Qh5+ {[%clk 0:03:00]}  g6 {[%clk 0:02:57]} 6. fxg6 {[%clk 0:03:01]}  Bg7 {[%clk 0:02:57]} 7. gxh7+ {[%clk 0:02:27]}  Kf8 {[%clk 0:02:56]} 8. Ne2 {[%clk 0:02:12]}  Bxh1 {[%clk 0:02:47]} 9. Nf4 {[%clk 0:02:11]}  Nf6 {[%clk 0:02:41]} 10. Qh4 {[%clk 0:01:49]}  Ke8 {[%clk 0:02:19]} 11. Bg6+ {[%clk 0:01:34]}  Kf8 {[%clk 0:02:19]} 12. Bd3 {[%clk 0:01:34]}  Ke8 {[%clk 0:02:08]} 13. Bg6+ {[%clk 0:00:46]}  Kf8 {[%clk 0:02:06]} 14. Bd3 {[%clk 0:00:38]} 1/2-1/2


[Site "https://www.chess.com"]